bitfinex/quotes_ETHUSD_20241018
["timestamp","ask_amount","ask_price","bid_price","bid_amount"]
[1729241277683,0.8009,2641.2,2641.0,8.18105916]
[1729241278471,0.8009,2641.2,2641.0,4.39463916]
[1729241280460,0.8009,2641.2,2641.1,3.7863]
[1729241280777,0.8009,2641.2,2641.1,3.84443375]
[1729241282558,0.8009,2641.2,2641.1,4.47014565]
[1729241282759,0.8556,2641.4,2641.2,3.7861]
[1729241283075,0.8556,2641.4,2641.3,0.13368258]
[1729241283391,0.8556,2641.4,2641.3,0.05797382]
[1729241283753,0.8556,2641.4,2641.2,3.7861]
[1729241283965,0.8556,2641.4,2641.3,0.05797382]
[1729241284185,0.8556,2641.4,2641.2,3.7861]
[1729241284485,0.8556,2641.4,2641.3,0.05797382]
[1729241284689,0.8556,2641.4,2641.1,4.33627]
[1729241284886,0.8556,2641.4,2641.2,0.05805378]
[1729241295241,3.78527,2641.9,2641.3,0.8194]
[1729241295563,0.8281,2642.0,2641.3,0.8194]
[1729241295564,4.61311,2642.0,2641.4,0.05789386]
[1729241295771,8.39824,2642.0,2641.4,0.05789386]
[1729241296123,4.61311,2642.0,2641.4,0.05789386]
[1729241296582,3.78515,2641.9,2641.4,0.05789386]
[1729241296865,0.8779,2641.8,2641.4,0.05789386]
[1729241297364,0.8779,2641.8,2641.4,1.04102427]
[1729241298276,0.8779,2641.8,2641.4,0.05789386]
[1729241298439,0.8779,2641.8,2641.4,1.04102427]
[1729241300234,0.8779,2641.8,2641.4,1.04169]
[1729241301933,0.8779,2641.8,2641.4,0.05789386]
[1729241302133,0.8779,2641.8,2641.4,1.04189471]
[1729241302360,0.8779,2641.8,2641.4,0.05789386]
[1729241302543,0.8779,2641.8,2641.4,3.84373386]
[1729241303043,0.8779,2641.8,2641.5,0.98415123]
[1729241303333,0.8779,2641.8,2641.6,0.05767448]
[1729241305279,0.8779,2641.8,2641.5,0.98442364]
[1729241305452,0.9084,2642.0,2641.7,0.13329861]
[1729241305667,0.9084,2642.0,2641.7,0.07570407]
[1729241305872,0.9084,2642.0,2641.8,0.05751461]
[1729241306039,0.836,2642.3,2641.8,0.05751461]
[1729241306233,0.836,2642.3,2641.8,3.78529]
[1729241306468,0.836,2642.3,2641.9,0.05737818]
[1729241306904,4.62058,2642.3,2641.8,0.98453147]
[1729241307110,4.62058,2642.3,2641.9,0.0572979]
[1729241307267,4.62058,2642.3,2641.7,5.39529425]
[1729241307268,4.62058,2642.3,2641.8,0.98437175]
[1729241307468,4.62058,2642.3,2641.9,0.0572979]
[1729241307667,4.62058,2642.3,2641.8,1.77560543]
[1729241307862,4.62058,2642.3,2641.9,1.04173908]
[1729241308106,4.62058,2642.3,2641.9,0.0572979]
[1729241308278,4.62058,2642.3,2641.9,1.04155275]
[1729241308675,4.62058,2642.3,2641.9,0.0572979]
[1729241309184,8.40523,2642.3,2641.8,0.98430568]
[1729241309399,4.62058,2642.3,2641.7,5.39529425]
[1729241309702,4.62058,2642.3,2641.8,1.04159449]
[1729241310068,4.62058,2642.3,2641.8,0.05737783]
[1729241310417,3.78481,2642.2,2641.8,0.98408819]
[1729241310584,0.8353,2642.1,2641.9,0.0572979]
[1729241311982,0.8353,2642.1,2641.7,0.98410504]
[1729241312282,0.8353,2642.1,2642.0,0.05721798]
[1729241312495,0.8353,2642.1,2641.6,7.57666425]
[1729241312813,0.8353,2642.1,2641.7,0.98410354]
[1729241313011,0.8353,2642.1,2641.7,1.0415613]
[1729241313510,0.8353,2642.1,2641.7,0.05745776]
[1729241314327,0.8353,2642.1,2641.7,1.0415299]
[1729241314524,0.8353,2642.1,2641.7,0.05745776]
[1729241315185,0.8353,2642.1,2641.7,1.04157707]
[1729241315386,0.8353,2642.1,2641.7,0.05745776]
[1729241316697,0.8353,2642.1,2641.8,0.9842425]
[1729241316897,0.8353,2642.1,2641.9,0.0572979]
[1729241317334,0.8819,2642.3,2641.9,0.0572979]
[1729241318527,4.6665,2642.3,2641.9,0.0572979]
[1729241321124,0.8819,2642.3,2641.9,0.0572979]
[1729241322324,0.8819,2642.3,2641.9,1.04138106]
[1729241323228,4.6665,2642.3,2641.9,1.04131504]
[1729241323820,0.8819,2642.3,2641.9,1.04127204]
[1729241324591,0.8819,2642.3,2641.9,0.0572979]
[1729241325023,0.8819,2642.3,2642.0,1.05961101]
[1729241325225,0.8819,2642.3,2642.0,1.11662684]
[1729241326928,0.8819,2642.3,2642.1,0.98391684]
[1729241327087,0.8819,2642.3,2642.1,0.05693592]
[1729241329215,4.66648,2642.3,2641.9,0.98364905]
[1729241329433,4.66648,2642.3,2642.2,0.05685601]
[1729241329735,0.8869,2641.9,2641.7,0.98376969]
[1729241329897,0.8869,2641.9,2641.5,1.77493394]
[1729241330093,0.8869,2641.9,2641.6,0.98376969]
[1729241330541,4.67211,2641.9,2641.6,0.98376969]
[1729241330722,0.8481,2641.8,2641.5,0.98376969]
[1729241330926,4.63347,2641.8,2641.5,0.98376969]
[1729241331540,3.78537,2641.8,2641.4,0.98376969]
[1729241331714,3.78568,2641.6,2641.4,0.98376969]
[1729241333950,4.66465,2641.7,2641.4,0.98376969]
[1729241334503,4.66465,2641.7,2641.3,0.79116425]
[1729241334742,4.66465,2641.7,2641.4,0.98419396]
[1729241334940,4.66465,2641.7,2641.3,0.79116425]
[1729241335139,0.8792,2641.7,2641.4,0.98419252]
[1729241335341,3.78559,2641.6,2641.3,0.79116425]
[1729241335642,3.78559,2641.6,2641.4,0.98426817]
[1729241335816,3.78559,2641.6,2641.3,0.79116425]
[1729241336016,3.78559,2641.6,2641.4,0.98427247]
[1729241336250,3.78559,2641.6,2641.3,0.79116425]
[1729241336466,3.78559,2641.6,2641.4,0.98433649]
[1729241336617,3.78559,2641.6,2641.3,0.79116425]
[1729241336818,3.78559,2641.6,2641.4,0.98433977]
[1729241337019,4.66471,2641.7,2641.3,0.79116425]
[1729241337218,4.66471,2641.7,2641.4,0.98434104]
[1729241337452,4.66471,2641.7,2641.5,0.98434104]
[1729241337675,4.66471,2641.7,2641.4,0.98434104]
[1729241337855,0.8792,2641.7,2641.5,0.98434104]
[1729241338059,3.78522,2641.9,2641.4,1.60996425]
[1729241338254,3.78522,2641.9,2641.5,0.9843666]
[1729241338460,3.78532,2641.8,2641.4,1.60996425]
[1729241338659,3.78532,2641.8,2641.5,0.98445248]
[1729241338832,3.78532,2641.8,2641.4,1.60996425]
[1729241339035,3.78532,2641.8,2641.5,0.98447507]
[1729241339220,3.78532,2641.8,2641.4,1.60996425]
[1729241339415,3.78532,2641.8,2641.5,0.98455679]
[1729241339615,3.78532,2641.8,2641.4,1.60996425]
[1729241339850,3.78532,2641.8,2641.5,0.98455709]
[1729241340044,3.78516,2641.9,2641.6,0.98453096]
[1729241340217,3.78516,2641.9,2641.5,0.79116425]
[1729241340416,4.68131,2642.0,2641.6,0.98460642]
[1729241340668,0.8962,2642.0,2641.6,0.07571155]
[1729241340824,4.66269,2642.2,2641.7,1.04198616]
[1729241341027,4.66269,2642.2,2641.8,0.98456408]
[1729241341338,4.66269,2642.2,2641.8,0.0573035]
[1729241341548,4.66269,2642.2,2641.7,0.79116425]
[1729241341769,4.66269,2642.2,2641.9,0.05722357]
[1729241341922,8.4475,2642.2,2641.8,0.0573035]
[1729241342124,8.4475,2642.2,2641.9,0.98463882]
[1729241342324,8.4475,2642.2,2642.0,0.05714365]
[1729241342524,8.4475,2642.2,2641.9,0.98460786]
[1729241342857,4.66269,2642.2,2642.0,0.05714365]
[1729241343063,8.44749,2642.2,2642.0,0.05714365]
[1729241343266,8.44749,2642.2,2641.9,0.98460401]
[1729241343267,4.66269,2642.2,2641.8,0.79116425]
[1729241343445,4.66269,2642.2,2642.1,0.05706374]
[1729241343650,4.66269,2642.2,2641.8,0.79116425]
[1729241343855,4.66269,2642.2,2642.1,0.05706374]
[1729241344081,4.66269,2642.2,2641.8,0.79116425]
[1729241344392,4.66269,2642.2,2641.9,0.98461747]
[1729241344601,4.66269,2642.2,2641.9,0.05722357]
[1729241346899,3.78487,2642.1,2641.9,0.05722357]
[1729241347075,7.56988,2642.1,2641.9,0.05722357]
[1729241347292,0.8661,2642.0,2641.9,0.05722357]
[1729241347481,4.65111,2642.0,2641.9,0.05722357]
[1729241347993,0.8661,2641.7,2641.5,0.79116425]
[1729241348164,0.8661,2641.7,2641.6,0.98483621]
[1729241348877,3.78532,2641.8,2641.6,0.98483621]
[1729241349079,3.78532,2641.8,2641.5,0.79116425]
[1729241349394,7.57071,2641.8,2641.6,0.98485588]
[1729241349597,7.57071,2641.8,2641.5,0.79116425]
[1729241349795,7.57071,2641.8,2641.6,0.98489668]
[1729241350098,7.57071,2641.8,2641.5,0.79116425]
[1729241350298,3.78544,2641.7,2641.6,0.9849192]
[1729241350496,3.78544,2641.7,2641.5,0.79116425]
[1729241350652,3.78544,2641.7,2641.6,0.98491851]
[1729241351351,3.78544,2641.7,2641.4,0.79116425]
[1729241351566,3.78544,2641.7,2641.5,1.77609832]
[1729241351767,3.78544,2641.7,2641.6,0.98493407]
[1729241354302,4.62628,2641.9,2641.6,1.77609832]
[1729241354596,4.62628,2641.9,2641.7,0.98493407]
[1729241354804,4.62628,2641.9,2641.6,0.79116425]
[1729241354956,0.841,2641.9,2641.7,0.98481287]
[1729241355161,0.841,2641.9,2641.5,5.47132045]
[1729241355470,3.78511,2642.0,2641.6,1.77593048]
[1729241355688,3.78511,2642.0,2641.7,0.98476623]
[1729241355854,3.78511,2642.0,2641.7,0.05535365]
[1729241356698,4.61718,2642.1,2641.7,0.05535365]
[1729241356898,4.61718,2642.1,2641.8,0.98478246]
[1729241357071,4.61718,2642.1,2641.7,0.8465179]
[1729241357268,4.61718,2642.1,2641.9,0.05519379]
[1729241357472,4.61718,2642.1,2641.8,0.05527372]
[1729241357686,4.61718,2642.1,2642.0,0.05511387]
[1729241357898,4.61718,2642.1,2641.9,0.05519379]
[1729241358207,4.61718,2642.1,2642.0,0.05511387]
[1729241358411,4.61718,2642.1,2641.8,0.98476527]
[1729241358703,4.61718,2642.1,2642.0,0.05511387]
[1729241358886,4.61718,2642.1,2641.7,0.79116425]
[1729241358887,4.61718,2642.1,2641.9,0.05519379]
[1729241359087,4.61718,2642.1,2642.0,0.05511387]
[1729241359763,4.61718,2642.1,2641.8,0.98476611]
[1729241359963,4.61718,2642.1,2642.0,0.05511387]
[1729241360215,4.61718,2642.1,2641.7,0.79116425]
[1729241360216,4.61718,2642.1,2641.8,0.98476608]
[1729241360503,4.61718,2642.1,2642.0,0.05511387]
[1729241360708,4.61718,2642.1,2641.7,0.79116425]
[1729241360709,4.61718,2642.1,2641.9,0.05519379]
[1729241361006,3.78473,2642.2,2642.0,0.05508124]
[1729241361175,3.78486,2642.1,2641.9,0.98473683]
[1729241361379,3.78486,2642.1,2641.7,1.60996425]
[1729241361380,3.78473,2642.2,2642.1,0.05500133]
[1729241361591,3.78473,2642.2,2642.0,0.05508124]
[1729241361913,3.78473,2642.2,2641.8,0.79116425]
[1729241362107,3.78473,2642.2,2642.1,0.05500133]
[1729241362310,3.78473,2642.2,2641.8,0.79116425]
[1729241362311,7.56953,2642.2,2641.8,0.79116425]
[1729241362611,3.78451,2642.4,2642.0,0.8188]
[1729241362839,3.78451,2642.4,2642.1,0.98472013]
[1729241363109,3.78451,2642.4,2642.2,0.98463339]
[1729241363316,3.78451,2642.4,2642.1,0.05500133]
[1729241363472,3.78451,2642.4,2642.3,0.05484152]
[1729241363671,3.78451,2642.4,2642.2,0.05492142]
[1729241363887,3.78451,2642.4,2642.3,0.05484152]
[1729241364562,3.78451,2642.4,2642.1,0.98447557]
[1729241364767,3.78451,2642.4,2642.3,0.05484152]
[1729241365008,7.56904,2642.4,2642.1,0.98447294]
[1729241365305,3.78451,2642.4,2642.3,0.05484152]
[1729241365604,7.56903,2642.4,2642.3,0.05484152]
[1729241365794,3.78451,2642.4,2642.0,1.60996425]
[1729241365988,3.78451,2642.4,2642.3,0.05484152]
[1729241366190,3.78451,2642.4,2642.2,0.98435319]
[1729241366405,3.78441,2642.5,2642.3,0.05484152]
[1729241366626,3.78441,2642.5,2642.2,0.98427496]
[1729241366831,4.67145,2642.6,2642.4,0.05476162]
[1729241366982,4.67145,2642.6,2642.1,0.79116425]
[1729241366983,8.45568,2642.6,2642.2,0.98424547]
[1729241367309,4.67143,2642.6,2642.5,0.05468173]
[1729241367623,3.78433,2642.5,2642.2,0.98415535]
[1729241367835,3.78433,2642.5,2642.1,0.79116425]
[1729241368123,3.78433,2642.5,2642.2,0.98413925]
[1729241368324,3.78433,2642.5,2642.2,0.98404888]
[1729241368798,3.78433,2642.5,2642.2,0.98407904]
[1729241369308,3.78433,2642.5,2642.2,0.98405262]
[1729241369498,3.78433,2642.5,2642.1,0.98405262]
[1729241369705,3.78433,2642.5,2642.2,0.98398498]
[1729241369905,3.78433,2642.5,2642.1,1.77514923]
[1729241370204,3.78433,2642.5,2642.2,0.98398658]
[1729241370424,3.78433,2642.5,2642.1,0.98398658]
[1729241370603,3.78433,2642.5,2642.3,0.05484152]
[1729241370911,3.78433,2642.5,2642.1,1.77508674]
[1729241371249,3.78433,2642.5,2642.2,0.98392249]
[1729241371543,3.78433,2642.5,2642.2,1.03884391]
[1729241372351,3.78433,2642.5,2642.2,0.05492142]
[1729241372847,3.78433,2642.5,2642.2,1.03870797]
[1729241373238,3.78433,2642.5,2642.2,1.03872846]
[1729241373437,3.78433,2642.5,2642.2,0.05492142]
[1729241373638,7.56876,2642.5,2642.2,0.05492142]
[1729241373838,4.63885,2642.4,2642.1,0.98375975]
[1729241374144,3.7846,2642.3,2642.1,0.98375975]
[1729241374520,3.7846,2642.3,2642.0,0.98375975]
[1729241374725,3.7846,2642.3,2642.1,0.98380238]
[1729241374921,3.7846,2642.3,2641.9,3.79116425]
[1729241375222,3.7846,2642.3,2642.0,0.98380173]
[1729241376425,3.78501,2642.0,2641.9,0.98380173]
[1729241376750,3.78501,2642.0,2641.7,1.77496598]
[1729241376914,3.78501,2642.0,2641.8,0.98380173]
[1729241377754,3.78501,2642.0,2641.7,0.98380173]
[1729241377913,4.63933,2642.1,2641.8,0.98389288]
[1729241378826,4.63933,2642.1,2641.7,0.98389288]
[1729241379027,4.63933,2642.1,2641.6,3.79116425]
[1729241379218,4.63933,2642.1,2641.7,0.98397534]
[1729241379412,4.63933,2642.1,2641.8,0.98397534]
[1729241379617,4.63933,2642.1,2641.6,3.79116425]
[1729241379618,4.63933,2642.1,2641.7,0.98397534]
[1729241379853,3.78501,2642.0,2641.6,3.79116425]
[1729241380153,3.78501,2642.0,2641.7,0.98404966]
[1729241380322,3.78501,2642.0,2641.8,0.98404966]
[1729241383335,3.78501,2642.0,2641.7,0.79116425]
[1729241384170,3.78501,2642.0,2641.8,0.9843317]
[1729241384664,7.57014,2642.0,2641.8,0.9843317]
[1729241384965,3.78501,2642.0,2641.8,0.9843317]
[1729241385564,7.57016,2642.0,2641.8,0.9843317]
[1729241385865,3.78501,2642.0,2641.9,0.05339443]
[1729241386063,3.78501,2642.0,2641.7,1.07462649]
[1729241386271,3.78501,2642.0,2641.9,0.05339443]
[1729241386562,3.78501,2642.0,2641.7,1.07462649]
[1729241386725,3.78501,2642.0,2641.9,0.05339443]
[1729241386923,3.78501,2642.0,2641.8,0.05347435]
[1729241387166,3.78501,2642.0,2641.9,0.05339443]
[1729241387554,3.78501,2642.0,2641.7,1.07462649]
[1729241387740,3.78501,2642.0,2641.9,0.05339443]
[1729241388067,0.8544,2642.1,2641.9,0.05174713]
[1729241388230,0.8544,2642.1,2641.7,1.07462649]
[1729241388433,0.8544,2642.1,2642.0,0.05166721]
[1729241388632,0.8544,2642.1,2641.7,1.07462649]
[1729241388860,4.63926,2642.1,2642.0,0.05166721]
[1729241389202,4.63926,2642.1,2641.7,1.07462649]
[1729241389352,4.63926,2642.1,2642.0,0.05166721]
[1729241389686,4.63926,2642.1,2641.8,0.28346224]
[1729241389861,4.63926,2642.1,2642.0,0.05166721]
[1729241390045,4.63926,2642.1,2641.8,0.28346224]
[1729241390386,4.63926,2642.1,2642.0,0.05166721]
[1729241390546,4.63926,2642.1,2641.9,0.05174713]
[1729241390896,4.63926,2642.1,2642.0,0.05166721]
[1729241391097,4.63926,2642.1,2641.7,0.28346224]
[1729241391262,4.63926,2642.1,2642.0,0.05166721]
[1729241391579,4.63926,2642.1,2641.7,0.28346224]
[1729241391784,4.63926,2642.1,2642.0,0.05166721]
[1729241391988,4.63926,2642.1,2641.7,0.28346224]
[1729241392192,4.63926,2642.1,2642.0,0.05166721]
[1729241392360,4.63926,2642.1,2641.7,0.28346224]
[1729241392550,4.63926,2642.1,2642.0,0.05166721]
[1729241392751,4.63926,2642.1,2641.7,0.28346224]
[1729241392951,4.63926,2642.1,2642.0,0.05166721]
[1729241393261,3.78509,2642.0,2641.7,0.28346224]
[1729241393448,3.78509,2642.0,2641.6,3.0]
[1729241393649,3.78509,2642.0,2641.6,3.28349287]
[1729241394660,3.78509,2642.0,2641.6,3.0]
[1729241395498,3.78509,2642.0,2641.7,0.28350339]
[1729241395661,3.78509,2642.0,2641.6,3.0]
[1729241396259,3.78509,2642.0,2641.7,0.2835044]
[1729241396459,3.78509,2642.0,2641.5,3.78565]
[1729241396676,3.78509,2642.0,2641.6,0.28352091]
[1729241397012,3.78509,2642.0,2641.5,3.78565]
[1729241397306,4.63926,2642.1,2641.5,3.78565]
[1729241397307,0.8544,2642.1,2641.6,0.28352297]
[1729241397505,4.63936,2642.1,2641.6,4.06903297]
[1729241398031,0.8544,2642.1,2641.6,0.28352297]
[1729241398167,3.78507,2642.0,2641.6,0.28352297]
[1729241398367,3.78507,2642.0,2641.6,4.06907297]
[1729241399906,3.78507,2642.0,2641.6,0.28352297]
[1729241400109,3.78507,2642.0,2641.6,4.06910297]
[1729241400507,0.8544,2642.1,2641.7,0.8176]
[1729241400508,4.63929,2642.1,2641.7,0.8176]
[1729241400677,0.8544,2642.1,2641.7,4.93851671]
[1729241401307,4.63928,2642.1,2641.7,4.93851671]
[1729241401808,4.63928,2642.1,2641.7,1.15308671]
[1729241402004,3.78482,2642.2,2641.7,1.15308671]
[1729241402005,0.9071,2642.3,2641.8,0.98474832]
[1729241402215,8.47643,2642.3,2641.9,0.98473475]
[1729241402398,4.69176,2642.3,2641.9,0.05174713]
[1729241402603,8.47645,2642.3,2641.9,0.05174713]
[1729241402781,3.78474,2642.2,2641.9,0.05174713]
[1729241403484,3.78474,2642.2,2641.7,1.61155277]
[1729241403687,3.78474,2642.2,2641.8,1.03658383]
[1729241404010,3.78495,2642.1,2641.8,0.05183299]
[1729241404365,3.78522,2641.9,2641.6,0.79395277]
[1729241404570,3.78522,2641.9,2641.7,0.9848076]
[1729241404813,3.78522,2641.9,2641.6,1.07755586]
[1729241405125,3.78522,2641.9,2641.7,0.98481081]
[1729241405299,3.78522,2641.9,2641.6,1.07755586]
[1729241405471,3.78522,2641.9,2641.7,0.98477386]
[1729241405819,3.78522,2641.9,2641.6,0.79395277]
[1729241406002,3.78522,2641.9,2641.7,0.98475943]
[1729241406174,3.78522,2641.9,2641.6,0.79395277]
[1729241406365,0.8605,2642.0,2641.7,1.26830474]
[1729241406570,0.8605,2642.0,2641.8,0.98472237]
[1729241406772,0.8605,2642.0,2641.7,0.28358237]
[1729241406970,0.8605,2642.0,2641.8,0.98470226]
[1729241407219,0.8605,2642.0,2641.7,1.07753514]
[1729241407523,0.8605,2642.0,2641.8,0.98468518]
[1729241407703,0.8605,2642.0,2641.6,1.07752069]
[1729241408013,0.8605,2642.0,2641.7,1.26825315]
[1729241408219,0.8605,2642.0,2641.8,0.98468523]
[1729241408425,0.8605,2642.0,2641.7,0.28356792]
[1729241408902,0.8605,2642.0,2641.8,0.98465219]
[1729241409108,0.8605,2642.0,2641.7,0.79395277]
[1729241409283,4.64551,2642.0,2641.8,0.98465756]
[1729241409482,4.64551,2642.0,2641.7,1.07752069]
[1729241409671,4.64551,2642.0,2641.8,0.98466189]
[1729241409873,4.64551,2642.0,2641.7,1.07752069]
[1729241410088,4.64551,2642.0,2641.8,0.98466352]
[1729241410417,4.64551,2642.0,2641.7,1.07752069]
[1729241410709,3.78515,2641.9,2641.8,0.98468438]
[1729241411805,0.8605,2642.0,2641.8,0.98468438]
[1729241412004,0.8605,2642.0,2641.7,1.07752069]
[1729241412205,0.8605,2642.0,2641.8,0.98471642]
[1729241412418,4.64554,2642.0,2641.7,0.28356792]
[1729241412615,4.64554,2642.0,2641.8,0.98478594]
[1729241412818,4.64554,2642.0,2641.7,0.28356792]
[1729241413033,4.64554,2642.0,2641.8,0.98478567]
[1729241413190,4.64554,2642.0,2641.7,0.28356792]
[1729241413391,4.64554,2642.0,2641.8,0.98479415]
[1729241413587,4.64554,2642.0,2641.7,0.79395277]
[1729241413792,4.64554,2642.0,2641.8,0.98482066]
[1729241413994,4.64554,2642.0,2641.7,0.79395277]
[1729241414203,4.64554,2642.0,2641.8,1.2684298]
[1729241414404,0.8605,2642.0,2641.9,0.98482018]
[1729241414636,3.78487,2642.1,2641.9,0.98482018]
[1729241414939,3.78487,2642.1,2641.8,0.79395277]
[1729241415141,3.78487,2642.1,2641.9,0.98492578]
[1729241415477,3.78487,2642.1,2641.8,0.79395277]
[1729241415634,3.78487,2642.1,2641.9,0.98503977]
[1729241415836,4.68252,2642.2,2641.9,0.05173823]
[1729241415837,8.46733,2642.2,2641.9,0.05173823]
[1729241416138,4.68252,2642.2,2641.9,0.05173823]
[1729241416333,3.78488,2642.1,2641.9,0.33543995]
[1729241416633,3.78488,2642.1,2641.9,0.05173823]
[1729241416819,3.78488,2642.1,2641.9,0.33543983]
[1729241417191,3.78472,2642.2,2641.9,0.05173823]
[1729241417393,3.78462,2642.3,2642.0,0.98518213]
[1729241417634,3.78462,2642.3,2641.9,0.845691]
[1729241417808,3.78462,2642.3,2642.1,0.0515784]
[1729241418016,3.78462,2642.3,2642.0,0.05165831]
[1729241418207,3.78462,2642.3,2642.2,0.05149849]
[1729241418724,3.78462,2642.3,2641.9,0.79395277]
[1729241418912,3.78462,2642.3,2642.0,1.32091017]
[1729241419107,3.78462,2642.3,2642.0,0.05165831]
[1729241419345,3.78462,2642.3,2642.1,0.98566956]
[1729241419694,3.78462,2642.3,2642.2,0.05149849]
[1729241419996,3.78462,2642.3,2642.0,1.07779363]
[1729241420130,3.78462,2642.3,2642.2,0.05149849]
[1729241420927,3.78462,2642.3,2642.0,0.79395277]
[1729241421131,3.78462,2642.3,2642.1,1.03740085]
[1729241421438,3.78462,2642.3,2642.1,0.0515784]
[1729241424129,3.78462,2642.3,2642.2,0.98601772]
[1729241424335,3.78462,2642.3,2642.2,1.03751621]
[1729241426476,3.78439,2642.5,2642.2,1.03751621]
[1729241426784,7.56876,2642.5,2642.3,0.98601772]
[1729241426996,7.56876,2642.5,2642.2,1.66265126]
[1729241427177,7.56876,2642.5,2642.4,0.05128236]
[1729241427373,3.78438,2642.5,2642.3,0.05136225]
[1729241427576,3.78443,2642.4,2642.2,1.61115277]
[1729241427750,3.78443,2642.4,2642.3,0.98560902]
[1729241428084,3.78438,2642.5,2642.3,0.98560902]
[1729241428285,3.78438,2642.5,2642.2,1.61115277]
[1729241428452,3.78438,2642.5,2642.3,0.98545896]
[1729241428789,3.78438,2642.5,2642.2,1.61115277]
[1729241429088,0.9082,2642.6,2642.3,0.98544792]
[1729241429300,4.69239,2642.6,2642.2,1.61115277]
[1729241429449,4.69239,2642.6,2642.3,0.98529835]
[1729241429648,3.78431,2642.5,2642.2,1.61115277]
[1729241429862,3.78431,2642.5,2642.3,0.98529897]
[1729241430190,3.78431,2642.5,2642.2,1.61115277]
[1729241430401,3.78431,2642.5,2642.3,0.98520435]
[1729241430701,3.78431,2642.5,2642.4,0.05128236]
[1729241430844,3.78431,2642.5,2642.2,1.61115277]
[1729241431051,3.78431,2642.5,2642.3,1.0365666]
[1729241431276,3.78431,2642.5,2642.3,0.05136225]
[1729241431593,3.78431,2642.5,2642.2,1.61115277]
[1729241431790,3.78431,2642.5,2642.4,0.05128236]
[1729241431997,3.78431,2642.5,2642.3,0.05136225]
[1729241432207,3.78431,2642.5,2642.4,0.0988017]
[1729241432564,4.69241,2642.6,2642.2,1.61115277]
[1729241432767,4.69241,2642.6,2642.4,0.09871276]
[1729241432994,3.78432,2642.5,2642.3,0.09879445]
[1729241433181,3.78432,2642.5,2642.2,1.61115277]
[1729241433383,3.78432,2642.5,2642.3,0.98496609]
[1729241433578,3.78432,2642.5,2642.2,1.61115277]
[1729241433896,3.78432,2642.5,2642.3,0.98496702]
[1729241434193,3.78432,2642.5,2642.2,1.61115277]
[1729241434412,3.78432,2642.5,2642.3,0.9849037]
[1729241434606,3.78432,2642.5,2642.2,1.61115277]
[1729241434776,3.78432,2642.5,2642.3,0.98490432]
[1729241434975,3.78432,2642.5,2642.2,0.8172]
[1729241435177,3.78432,2642.5,2642.3,0.9848617]
[1729241435377,3.78432,2642.5,2642.2,0.8172]
[1729241435565,3.78432,2642.5,2642.3,0.98485772]
[1729241435766,3.78432,2642.5,2642.2,0.8172]
[1729241435981,3.78432,2642.5,2642.3,0.98485821]
[1729241436195,3.78432,2642.5,2642.2,0.8172]
[1729241436407,3.78432,2642.5,2642.3,0.98481154]
[1729241436592,3.78432,2642.5,2642.2,0.8172]
[1729241436967,0.9082,2642.6,2642.3,0.98478635]
[1729241437195,4.69241,2642.6,2642.2,0.8172]
[1729241437391,3.78432,2642.5,2642.2,0.8172]
[1729241437564,3.78432,2642.5,2642.3,0.98471192]
[1729241437769,3.78432,2642.5,2642.2,0.8172]
[1729241443616,3.78432,2642.5,2642.3,0.98456794]
[1729241443767,3.78432,2642.5,2642.2,0.8172]
[1729241443967,3.78432,2642.5,2642.3,0.98456696]
[1729241444181,0.9082,2642.6,2642.2,1.61115277]
[1729241444367,4.69248,2642.6,2642.3,0.98452822]
[1729241444573,4.69248,2642.6,2642.2,1.61115277]
[1729241444877,4.69248,2642.6,2642.3,0.98453184]
[1729241445112,3.7843,2642.5,2642.2,1.61115277]
[1729241445289,3.7843,2642.5,2642.3,0.9844992]
[1729241445536,3.7843,2642.5,2642.2,1.61115277]
[1729241445695,3.7843,2642.5,2642.3,1.08006852]
[1729241445891,3.7843,2642.5,2642.3,0.09553481]
[1729241446080,3.7843,2642.5,2642.2,1.61115277]
[1729241446282,3.7843,2642.5,2642.3,1.08003734]
[1729241446512,3.7843,2642.5,2642.3,0.09553481]
[1729241446708,3.7843,2642.5,2642.2,1.61115277]
[1729241447010,3.7843,2642.5,2642.3,1.080037]
[1729241447304,3.7843,2642.5,2642.3,0.09553481]
[1729241447471,3.7843,2642.5,2642.2,1.61115277]
[1729241447666,3.7843,2642.5,2642.3,1.08001191]
[1729241447865,3.7843,2642.5,2642.3,0.09552888]
[1729241448068,3.7843,2642.5,2642.2,1.61115277]
[1729241448265,3.7843,2642.5,2642.3,1.07998151]
[1729241448511,3.7843,2642.5,2642.3,0.09552888]
[1729241448709,3.7843,2642.5,2642.2,1.61115277]
[1729241448912,3.7843,2642.5,2642.3,1.07998253]
[1729241449082,3.7843,2642.5,2642.3,0.09552888]
[1729241449292,3.7843,2642.5,2642.2,1.61115277]
[1729241449498,3.7843,2642.5,2642.3,1.07996922]
[1729241449811,3.7843,2642.5,2642.3,0.09552888]
[1729241450208,7.56871,2642.5,2642.2,1.61115277]
[1729241450519,3.7843,2642.5,2642.3,1.07996942]
[1729241450734,3.7843,2642.5,2642.3,0.09552888]
[1729241450888,3.7843,2642.5,2642.2,1.61115277]
[1729241451223,7.56872,2642.5,2642.3,1.07996936]
[1729241451431,3.7843,2642.5,2642.3,0.09552888]
[1729241451934,3.7843,2642.5,2642.4,0.09544719]
[1729241452227,3.7843,2642.5,2642.2,1.61115277]
[1729241452407,3.7843,2642.5,2642.4,0.09544719]
[1729241452613,3.7843,2642.5,2642.3,0.09552888]
[1729241452926,3.7843,2642.5,2642.4,1.07999336]
[1729241456841,4.69248,2642.6,2642.4,1.07999336]
[1729241457029,4.69248,2642.6,2642.4,0.09544719]
[1729241457030,3.78429,2642.5,2642.4,0.09544719]
[1729241457230,3.78429,2642.5,2642.4,1.08020724]
[1729241461508,5.501448,2642.5,2642.4,0.09544719]
[1729241461706,0.8937,2641.9,2641.7,0.79395277]
[1729241462048,3.78544,2641.7,2641.6,0.79395277]
[1729241462206,5.057684,2641.7,2641.6,0.98547091]
[1729241462413,4.67914,2641.7,2641.6,1.77942368]
[1729241462743,4.67914,2641.7,2641.6,0.98547091]
[1729241462958,3.78558,2641.6,2641.4,0.79395277]
[1729241463175,3.78558,2641.6,2641.5,0.98520888]
[1729241463359,3.78585,2641.5,2641.3,0.79395277]
[1729241463680,3.78585,2641.5,2641.4,0.98527233]